[Event "Late-Titled-Tuesday-Blitz-June-18-2024"]
[Site "Chess.com"]
[Date "2024.06.18"]
[Round "2"]
[White "HouseOfDurin"]
[Black "esskeettit"]
[Result "0-1"]
[WhiteElo "2316"]
[BlackElo "2523"]
[TimeControl "180+1"]
[EndTime "14:19:45 PDT"]
[Termination "esskeettit won by checkmate"]

1. d4 {[%clk 0:03:00.9]} 1... d5 {[%clk 0:02:59.6]} 2. Bg5 {[%clk 0:03:01.3]}
2... Nf6 {[%clk 0:02:56.6]} 3. Bxf6 {[%clk 0:03:01.3]} 3... exf6 {[%clk
0:02:56.1]} 4. e3 {[%clk 0:03:02]} 4... Bd6 {[%clk 0:02:52.7]} 5. c4 {[%clk
0:03:02.1]} 5... dxc4 {[%clk 0:02:47.7]} 6. Bxc4 {[%clk 0:03:03]} 6... O-O
{[%clk 0:02:47.8]} 7. Nc3 {[%clk 0:03:03.1]} 7... Re8 {[%clk 0:02:41.5]} 8. g3
{[%clk 0:03:02]} 8... Nd7 {[%clk 0:02:35.7]} 9. Nge2 {[%clk 0:03:01.8]} 9... Nb6
{[%clk 0:02:19.4]} 10. Bd3 {[%clk 0:02:59.8]} 10... c5 {[%clk 0:02:09.9]} 11.
O-O {[%clk 0:02:57]} 11... cxd4 {[%clk 0:02:09]} 12. Nxd4 {[%clk 0:02:57.2]}
12... Be5 {[%clk 0:02:00]} 13. Nde2 {[%clk 0:02:38.3]} 13... Bg4 {[%clk
0:01:56.1]} 14. Qc2 {[%clk 0:02:37.7]} 14... g6 {[%clk 0:01:55.5]} 15. Rfd1
{[%clk 0:02:37]} 15... Qe7 {[%clk 0:01:51]} 16. Rd2 {[%clk 0:02:15.2]} 16...
Rac8 {[%clk 0:01:44.2]} 17. Kg2 {[%clk 0:02:12]} 17... Qe6 {[%clk 0:01:41]} 18.
Bb5 {[%clk 0:01:35.1]} 18... Red8 {[%clk 0:01:28.3]} 19. Rad1 {[%clk 0:01:34.4]}
19... Rxd2 {[%clk 0:01:26.7]} 20. Rxd2 {[%clk 0:01:35.3]} 20... Bh3+ {[%clk
0:01:20.6]} 21. Kg1 {[%clk 0:01:35]} 21... Qg4 {[%clk 0:01:11.6]} 22. Qe4 {[%clk
0:01:14]} 22... Qxe4 {[%clk 0:01:03.7]} 23. Nxe4 {[%clk 0:01:14.9]} 23... a6
{[%clk 0:00:49.6]} 24. Bd3 {[%clk 0:01:09.9]} 24... Be6 {[%clk 0:00:45.6]} 25.
f4 {[%clk 0:01:06.6]} 25... Bb8 {[%clk 0:00:42.6]} 26. Nd4 {[%clk 0:00:57.6]}
26... Nd5 {[%clk 0:00:37]} 27. Kf2 {[%clk 0:00:55.2]} 27... Ba7 {[%clk
0:00:32.3]} 28. Rc2 {[%clk 0:00:39.2]} 28... Rd8 {[%clk 0:00:30.1]} 29. Re2
{[%clk 0:00:30.7]} 29... Bg4 {[%clk 0:00:26.6]} 30. Nf3 {[%clk 0:00:26.5]} 30...
Kg7 {[%clk 0:00:20.9]} 31. Bc2 {[%clk 0:00:20.4]} 31... Rc8 {[%clk 0:00:14.9]}
32. Bb3 {[%clk 0:00:18.4]} 32... Nxe3 {[%clk 0:00:09.4]} 33. Rxe3 {[%clk
0:00:18.2]} 33... Bf5 {[%clk 0:00:08.5]} 34. Ke2 {[%clk 0:00:16.4]} 34... Bxe3
{[%clk 0:00:07.5]} 35. Kxe3 {[%clk 0:00:17.3]} 35... Re8 {[%clk 0:00:07.3]} 36.
Nd2 {[%clk 0:00:17.5]} 36... Bxe4 {[%clk 0:00:07.2]} 37. Nxe4 {[%clk 0:00:17.9]}
37... f5 {[%clk 0:00:07.5]} 38. Bc2 {[%clk 0:00:18.1]} 38... fxe4 {[%clk
0:00:08.1]} 39. g4 {[%clk 0:00:17.2]} 39... f5 {[%clk 0:00:08.4]} 40. gxf5
{[%clk 0:00:17.2]} 40... gxf5 {[%clk 0:00:09.3]} 41. b4 {[%clk 0:00:17.2]} 41...
Kf6 {[%clk 0:00:09.7]} 42. Bb3 {[%clk 0:00:17.6]} 42... Rc8 {[%clk 0:00:10]} 43.
Bd5 {[%clk 0:00:17.3]} 43... Rc3+ {[%clk 0:00:09.8]} 44. Ke2 {[%clk 0:00:17.8]}
44... Rh3 {[%clk 0:00:09.3]} 45. Bxb7 {[%clk 0:00:17.6]} 45... Rxh2+ {[%clk
0:00:09.7]} 46. Ke3 {[%clk 0:00:17.8]} 46... Rxa2 {[%clk 0:00:10.3]} 47. Bc6
{[%clk 0:00:17.7]} 47... Ra3+ {[%clk 0:00:10.4]} 48. Kd4 {[%clk 0:00:17.8]}
48... Rb3 {[%clk 0:00:09.8]} 49. Kc4 {[%clk 0:00:17.7]} 49... Rb1 {[%clk
0:00:09.3]} 50. Bb7 {[%clk 0:00:17.5]} 50... Rc1+ {[%clk 0:00:08.3]} 51. Kd4
{[%clk 0:00:17.1]} 51... h5 {[%clk 0:00:08.5]} 52. Bxa6 {[%clk 0:00:16.6]} 52...
h4 {[%clk 0:00:08.6]} 53. Ke3 {[%clk 0:00:14.9]} 53... h3 {[%clk 0:00:08.7]} 54.
Bb7 {[%clk 0:00:13.3]} 54... h2 {[%clk 0:00:08.9]} 55. Bxe4 {[%clk 0:00:14.2]}
55... fxe4 {[%clk 0:00:09.4]} 56. Kxe4 {[%clk 0:00:14.8]} 56... h1=Q+ {[%clk
0:00:09.6]} 57. Kd4 {[%clk 0:00:15.7]} 57... Rd1+ {[%clk 0:00:09.2]} 58. Kc5
{[%clk 0:00:15.9]} 58... Qg1+ {[%clk 0:00:08.7]} 59. Kc6 {[%clk 0:00:15.1]}
59... Rc1+ {[%clk 0:00:08.7]} 60. Kd7 {[%clk 0:00:15.2]} 60... Qd4+ {[%clk
0:00:08.7]} 61. Ke8 {[%clk 0:00:15.6]} 61... Rc8# {[%clk 0:00:08.8]} 0-1

[Event "Late-Titled-Tuesday-Blitz-June-18-2024"]
[Site "Chess.com"]
[Date "2024.06.18"]
[Round "2"]
[White "ToddBryant"]
[Black "SRob2003"]
[Result "0-1"]
[WhiteElo "2385"]
[BlackElo "2711"]
[TimeControl "180+1"]
[EndTime "14:19:46 PDT"]
[Termination "SRob2003 won by checkmate"]

1. e4 {[%clk 0:03:00.9]} 1... c5 {[%clk 0:02:59.2]} 2. Nf3 {[%clk 0:03:00.2]}
2... d6 {[%clk 0:02:59.1]} 3. d4 {[%clk 0:03:00.8]} 3... cxd4 {[%clk 0:02:59.7]}
4. Nxd4 {[%clk 0:03:01.7]} 4... Nf6 {[%clk 0:02:59.6]} 5. Nc3 {[%clk 0:03:02.3]}
5... a6 {[%clk 0:02:56.1]} 6. Bg5 {[%clk 0:03:02.8]} 6... Nbd7 {[%clk
0:02:55.1]} 7. Qe2 {[%clk 0:03:02.5]} 7... Qa5 {[%clk 0:02:54.2]} 8. f4 {[%clk
0:02:58.5]} 8... h6 {[%clk 0:02:48]} 9. Bh4 {[%clk 0:02:54.6]} 9... g5 {[%clk
0:02:44.7]} 10. Bg3 {[%clk 0:02:42]} 10... gxf4 {[%clk 0:02:42.8]} 11. Bxf4
{[%clk 0:02:42.9]} 11... Ne5 {[%clk 0:02:25.3]} 12. Nb3 {[%clk 0:02:36.7]} 12...
Qc7 {[%clk 0:02:23.8]} 13. Bxe5 {[%clk 0:02:23.7]} 13... dxe5 {[%clk 0:02:23.3]}
14. O-O-O {[%clk 0:02:17]} 14... Bg4 {[%clk 0:02:11.7]} 15. Nd5 {[%clk 0:02:17]}
15... Nxd5 {[%clk 0:02:10.6]} 16. Qxg4 {[%clk 0:02:16.1]} 16... Qxc2+ {[%clk
0:02:10.1]} 17. Kxc2 {[%clk 0:02:11.3]} 17... Ne3+ {[%clk 0:02:11]} 18. Kb1
{[%clk 0:02:12]} 18... Nxg4 {[%clk 0:02:11.9]} 19. Rc1 {[%clk 0:01:37.8]} 19...
Nf2 {[%clk 0:01:55.8]} 20. Rg1 {[%clk 0:01:33.7]} 20... Nxe4 {[%clk 0:01:56.7]}
21. g4 {[%clk 0:01:30.4]} 21... Bg7 {[%clk 0:01:48.6]} 22. Bg2 {[%clk
0:01:30.9]} 22... Nd6 {[%clk 0:01:48.6]} 23. Rc7 {[%clk 0:01:19.7]} 23... Bf6
{[%clk 0:01:46.4]} 24. Nc5 {[%clk 0:01:05.6]} 24... O-O {[%clk 0:01:44.6]} 25.
Nxb7 {[%clk 0:01:01.6]} 25... Rac8 {[%clk 0:00:29.3]} 26. Rd7 {[%clk 0:00:56.1]}
26... Nc4 {[%clk 0:00:20.8]} 27. Be4 {[%clk 0:00:32.1]} 27... Nd6 {[%clk
0:00:09.5]} 28. Bd5 {[%clk 0:00:29.2]} 28... Nb5 {[%clk 0:00:06]} 29. g5 {[%clk
0:00:25.9]} 29... hxg5 {[%clk 0:00:05.5]} 30. h4 {[%clk 0:00:26.5]} 30... e6
{[%clk 0:00:05.2]} 31. hxg5 {[%clk 0:00:23.2]} 31... Bg7 {[%clk 0:00:05.4]} 32.
Be4 {[%clk 0:00:20.6]} 32... Rc4 {[%clk 0:00:04.2]} 33. Bd3 {[%clk 0:00:17.3]}
33... Rd4 {[%clk 0:00:04.1]} 34. Rxd4 {[%clk 0:00:17.4]} 34... exd4 {[%clk
0:00:03.5]} 35. Rh1 {[%clk 0:00:18.3]} 35... Nc7 {[%clk 0:00:03.2]} 36. Bh7+
{[%clk 0:00:18.5]} 36... Kh8 {[%clk 0:00:03.7]} 37. Nd6 {[%clk 0:00:12.7]} 37...
Be5 {[%clk 0:00:03.4]} 38. Ne4 {[%clk 0:00:07.3]} 38... Kg7 {[%clk 0:00:03.9]}
39. Nf6 {[%clk 0:00:06.2]} 39... Bxf6 {[%clk 0:00:03.7]} 40. gxf6+ {[%clk
0:00:07.1]} 40... Kxf6 {[%clk 0:00:04.1]} 41. Bd3 {[%clk 0:00:07.6]} 41... a5
{[%clk 0:00:03.4]} 42. Rf1+ {[%clk 0:00:07.9]} 42... Ke7 {[%clk 0:00:03.6]} 43.
Re1 {[%clk 0:00:08.8]} 43... f6 {[%clk 0:00:03.6]} 44. Bc4 {[%clk 0:00:08.1]}
44... e5 {[%clk 0:00:03.9]} 45. a3 {[%clk 0:00:08.3]} 45... Kd6 {[%clk
0:00:04.4]} 46. Kc2 {[%clk 0:00:08]} 46... Rh8 {[%clk 0:00:03.9]} 47. b4 {[%clk
0:00:07.8]} 47... axb4 {[%clk 0:00:03.8]} 48. axb4 {[%clk 0:00:08.7]} 48... Nd5
{[%clk 0:00:04]} 49. Kb3 {[%clk 0:00:04]} 49... Ne3 {[%clk 0:00:03.4]} 50. Ra1
{[%clk 0:00:01.7]} 50... f5 {[%clk 0:00:03.5]} 51. Ka4 {[%clk 0:00:02.1]} 51...
f4 {[%clk 0:00:03.4]} 52. Kb5 {[%clk 0:00:02.3]} 52... Rb8+ {[%clk 0:00:03]} 53.
Ka4 {[%clk 0:00:02.7]} 53... Ra8+ {[%clk 0:00:03.2]} 54. Ba6 {[%clk 0:00:02.2]}
54... Rxa6+ {[%clk 0:00:02.4]} 55. Kb5 {[%clk 0:00:03.1]} 55... Rxa1 {[%clk
0:00:03]} 56. Kb6 {[%clk 0:00:04]} 56... Rb1 {[%clk 0:00:03.4]} 57. b5 {[%clk
0:00:04.9]} 57... f3 {[%clk 0:00:04]} 58. Kb7 {[%clk 0:00:05.8]} 58... f2 {[%clk
0:00:04.9]} 59. Ka8 {[%clk 0:00:06.5]} 59... f1=Q {[%clk 0:00:05.6]} 60. Ka7
{[%clk 0:00:07.4]} 60... Qxb5 {[%clk 0:00:05.4]} 61. Ka8 {[%clk 0:00:07.2]}
61... Qa6# {[%clk 0:00:06.3]} 0-1

[Event "Late-Titled-Tuesday-Blitz-June-18-2024"]
[Site "Chess.com"]
[Date "2024.06.18"]
[Round "2"]
[White "micke12a"]
[Black "carokannlover213"]
[Result "0-1"]
[WhiteElo "2381"]
[BlackElo "2681"]
[TimeControl "180+1"]
[EndTime "14:19:48 PDT"]
[Termination "carokannlover213 won by resignation"]

1. e4 {[%clk 0:02:59.3]} 1... e6 {[%clk 0:03:00.9]} 2. d4 {[%clk 0:02:58.6]}
2... d5 {[%clk 0:03:01.8]} 3. Nd2 {[%clk 0:02:58.5]} 3... Be7 {[%clk 0:03:01.7]}
4. Bd3 {[%clk 0:02:56.3]} 4... c5 {[%clk 0:03:00.8]} 5. dxc5 {[%clk 0:02:55.1]}
5... Nf6 {[%clk 0:03:00.8]} 6. exd5 {[%clk 0:02:52.4]} 6... Qxd5 {[%clk
0:02:56]} 7. Qf3 {[%clk 0:02:50.6]} 7... Qxc5 {[%clk 0:02:49.3]} 8. Nb3 {[%clk
0:02:48.2]} 8... Qc7 {[%clk 0:02:46.6]} 9. Bf4 {[%clk 0:02:46.3]} 9... e5 {[%clk
0:02:47.2]} 10. Bg5 {[%clk 0:02:42.4]} 10... Nc6 {[%clk 0:02:23.5]} 11. a3
{[%clk 0:02:32.9]} 11... a5 {[%clk 0:02:14.2]} 12. Ne2 {[%clk 0:02:30.2]} 12...
a4 {[%clk 0:02:13.6]} 13. Nd2 {[%clk 0:02:29.9]} 13... Bg4 {[%clk 0:02:00.7]}
14. Qg3 {[%clk 0:02:26.1]} 14... Bxe2 {[%clk 0:01:52.7]} 15. Bxe2 {[%clk
0:02:26.2]} 15... Nd4 {[%clk 0:01:52.1]} 16. Bd3 {[%clk 0:02:16.4]} 16... Nxc2+
{[%clk 0:01:49]} 17. Bxc2 {[%clk 0:02:16]} 17... Qxc2 {[%clk 0:01:49.9]} 18.
Qxe5 {[%clk 0:02:15.8]} 18... O-O {[%clk 0:01:30.5]} 19. O-O {[%clk 0:02:09.7]}
19... Rfe8 {[%clk 0:01:30.8]} 20. Rac1 {[%clk 0:02:03.7]} 20... Qd3 {[%clk
0:01:27.9]} 21. Qg3 {[%clk 0:01:55.5]} 21... Qa6 {[%clk 0:01:25.6]} 22. Rfe1
{[%clk 0:01:50.8]} 22... Bd6 {[%clk 0:01:18.8]} 23. Qf3 {[%clk 0:01:41.2]} 23...
Be5 {[%clk 0:01:07.1]} 24. Nc4 {[%clk 0:01:31.7]} 24... Bd4 {[%clk 0:01:07.3]}
25. Red1 {[%clk 0:01:20.6]} 25... Rad8 {[%clk 0:00:54.7]} 26. Be3 {[%clk
0:01:18.1]} 26... Qa7 {[%clk 0:00:43.6]} 27. Bxd4 {[%clk 0:00:56.3]} 27... Rxd4
{[%clk 0:00:44.5]} 28. Ne3 {[%clk 0:00:54]} 28... b5 {[%clk 0:00:38.4]} 29. Nf5
{[%clk 0:00:47.7]} 29... Rxd1+ {[%clk 0:00:36]} 30. Rxd1 {[%clk 0:00:48.6]}
30... g6 {[%clk 0:00:27.5]} 31. Nd6 {[%clk 0:00:45.5]} 31... Re6 {[%clk
0:00:19.2]} 32. Nxb5 {[%clk 0:00:40.3]} 32... Qb6 {[%clk 0:00:19.1]} 33. Nd4
{[%clk 0:00:28.9]} 33... Qxd4 {[%clk 0:00:15.7]} 34. h3 {[%clk 0:00:13.9]} 34...
Qxb2 {[%clk 0:00:12.2]} 35. g4 {[%clk 0:00:10.5]} 35... h6 {[%clk 0:00:11.7]}
36. Qf4 {[%clk 0:00:07.4]} 36... Kg7 {[%clk 0:00:10.3]} 37. Rd4 {[%clk
0:00:07.3]} 37... Qa1+ {[%clk 0:00:09.1]} 38. Kg2 {[%clk 0:00:07.2]} 38... Qxa3
{[%clk 0:00:09.4]} 39. Rxa4 {[%clk 0:00:07.3]} 39... Qb3 {[%clk 0:00:08.3]} 40.
Rb4 {[%clk 0:00:07.3]} 40... Qd5+ {[%clk 0:00:08.3]} 41. Qf3 {[%clk 0:00:07.9]}
41... Qxf3+ {[%clk 0:00:07.9]} 42. Kxf3 {[%clk 0:00:08.8]} 42... Re5 {[%clk
0:00:08]} 43. Kg3 {[%clk 0:00:08.6]} 43... Re6 {[%clk 0:00:08.6]} 44. f4 {[%clk
0:00:08.7]} 44... Ne4+ {[%clk 0:00:09.2]} 45. Kf3 {[%clk 0:00:09]} 45... Nd6
{[%clk 0:00:09.8]} 46. Rd4 {[%clk 0:00:07.9]} 46... Ne8 {[%clk 0:00:08.7]} 47.
Ra4 {[%clk 0:00:06.4]} 47... g5 {[%clk 0:00:09]} 48. f5 {[%clk 0:00:06.3]} 48...
Re5 {[%clk 0:00:09.3]} 49. Ra6 {[%clk 0:00:06.4]} 49... Nf6 {[%clk 0:00:09.5]}
50. Rb6 {[%clk 0:00:06.8]} 50... Rd5 {[%clk 0:00:09.7]} 51. Ra6 {[%clk
0:00:07.1]} 51... Rd3+ {[%clk 0:00:10]} 52. Kg2 {[%clk 0:00:07.3]} 52... Ne4
{[%clk 0:00:10]} 53. Rb6 {[%clk 0:00:07.2]} 53... Rg3+ {[%clk 0:00:09.7]} 54.
Kh2 {[%clk 0:00:07.7]} 54... Re3 {[%clk 0:00:10.6]} 55. Rb4 {[%clk 0:00:06.4]}
55... Nf6 {[%clk 0:00:10.8]} 56. Rb3 {[%clk 0:00:05.1]} 56... Nxg4+ {[%clk
0:00:08.4]} 57. hxg4 {[%clk 0:00:04.7]} 57... Rxb3 {[%clk 0:00:09.3]} 0-1

[Event "Late-Titled-Tuesday-Blitz-June-18-2024"]
[Site "Chess.com"]
[Date "2024.06.18"]
[Round "2"]
[White "dosto07"]
[Black "ChristopherYoo"]
[Result "0-1"]
[WhiteElo "2621"]
[BlackElo "3003"]
[TimeControl "180+1"]
[EndTime "14:19:59 PDT"]
[Termination "ChristopherYoo won by resignation"]

1. e4 {[%clk 0:03:00.9]} 1... Nc6 {[%clk 0:02:53.4]} 2. Nf3 {[%clk 0:03:00.7]}
2... e5 {[%clk 0:02:53]} 3. Bb5 {[%clk 0:03:00.6]} 3... a6 {[%clk 0:02:52.7]} 4.
Ba4 {[%clk 0:03:01]} 4... d6 {[%clk 0:02:52.7]} 5. Bxc6+ {[%clk 0:02:59.8]} 5...
bxc6 {[%clk 0:02:52.5]} 6. d4 {[%clk 0:03:00.7]} 6... exd4 {[%clk 0:02:43.7]} 7.
Nxd4 {[%clk 0:02:58.9]} 7... c5 {[%clk 0:02:43.2]} 8. Ne2 {[%clk 0:02:59]} 8...
Nf6 {[%clk 0:02:40.7]} 9. Nbc3 {[%clk 0:02:59.9]} 9... Be7 {[%clk 0:02:40.2]}
10. O-O {[%clk 0:02:58.8]} 10... O-O {[%clk 0:02:40.8]} 11. f3 {[%clk
0:02:53.6]} 11... Bb7 {[%clk 0:02:38.5]} 12. Ng3 {[%clk 0:02:52.7]} 12... g6
{[%clk 0:02:36.3]} 13. Bh6 {[%clk 0:02:52.4]} 13... Re8 {[%clk 0:02:35.6]} 14.
Qd2 {[%clk 0:02:52.6]} 14... Qd7 {[%clk 0:02:19.7]} 15. Nf5 {[%clk 0:02:39]}
15... Bd8 {[%clk 0:02:18]} 16. Ne3 {[%clk 0:02:33.5]} 16... Kh8 {[%clk
0:01:47.5]} 17. Rad1 {[%clk 0:02:32.4]} 17... Ng8 {[%clk 0:01:33.4]} 18. Bf4
{[%clk 0:02:30]} 18... Bf6 {[%clk 0:01:33.6]} 19. Ned5 {[%clk 0:02:18]} 19...
Bg7 {[%clk 0:01:31.7]} 20. Rfe1 {[%clk 0:02:07.3]} 20... Rad8 {[%clk 0:01:30.4]}
21. Bg5 {[%clk 0:02:01]} 21... f6 {[%clk 0:01:30.1]} 22. Bf4 {[%clk 0:01:55.8]}
22... g5 {[%clk 0:01:11.6]} 23. Bg3 {[%clk 0:01:54.4]} 23... Nh6 {[%clk
0:01:04.3]} 24. h3 {[%clk 0:01:44.4]} 24... Nf7 {[%clk 0:01:03.5]} 25. Ne3
{[%clk 0:01:39.9]} 25... Nh6 {[%clk 0:01:01.5]} 26. Ned5 {[%clk 0:01:29]} 26...
Rg8 {[%clk 0:00:58.5]} 27. Kh2 {[%clk 0:01:22.9]} 27... Rde8 {[%clk 0:00:53.1]}
28. Ne3 {[%clk 0:01:18.7]} 28... f5 {[%clk 0:00:49.1]} 29. exf5 {[%clk
0:01:11.5]} 29... Nxf5 {[%clk 0:00:48.8]} 30. Nxf5 {[%clk 0:01:10.8]} 30... Qxf5
{[%clk 0:00:49.7]} 31. Rxe8 {[%clk 0:01:01.1]} 31... Rxe8 {[%clk 0:00:50.6]} 32.
Nd5 {[%clk 0:00:56.4]} 32... Bxd5 {[%clk 0:00:45.5]} 33. Qxd5 {[%clk 0:00:55.6]}
33... Qxd5 {[%clk 0:00:45.6]} 34. Rxd5 {[%clk 0:00:55.5]} 34... h6 {[%clk
0:00:41.6]} 35. Rd3 {[%clk 0:00:40.6]} 35... Re2 {[%clk 0:00:40.6]} 36. Ra3
{[%clk 0:00:32]} 36... Rxc2 {[%clk 0:00:40.2]} 37. Rxa6 {[%clk 0:00:32.1]} 37...
Rxb2 {[%clk 0:00:39.3]} 38. Rc6 {[%clk 0:00:30.4]} 38... Rb7 {[%clk 0:00:28.2]}
39. a4 {[%clk 0:00:30.1]} 39... Ra7 {[%clk 0:00:27]} 40. h4 {[%clk 0:00:29.6]}
40... gxh4 {[%clk 0:00:22.6]} 41. Bxh4 {[%clk 0:00:29.8]} 41... Rxa4 {[%clk
0:00:23.3]} 42. Bd8 {[%clk 0:00:25.2]} 42... Ra8 {[%clk 0:00:19.5]} 43. Be7
{[%clk 0:00:19.4]} 43... Ra7 {[%clk 0:00:13.7]} 44. Bd8 {[%clk 0:00:19.2]} 44...
Be5+ {[%clk 0:00:11.5]} 45. Kh3 {[%clk 0:00:18.4]} 45... Ra8 {[%clk 0:00:10.4]}
46. Be7 {[%clk 0:00:16.9]} 46... Rg8 {[%clk 0:00:07.5]} 47. g4 {[%clk 0:00:16]}
47... h5 {[%clk 0:00:05.7]} 48. g5 {[%clk 0:00:14.2]} 48... Kh7 {[%clk
0:00:04.7]} 49. Rxc7 {[%clk 0:00:13.4]} 49... Kg6 {[%clk 0:00:05.2]} 50. Rd7
{[%clk 0:00:11.5]} 50... Kf5 {[%clk 0:00:04.6]} 51. Bxd6 {[%clk 0:00:09.6]}
51... Ke6 {[%clk 0:00:04.9]} 52. Bxe5 {[%clk 0:00:03.4]} 52... Kxd7 {[%clk
0:00:05]} 53. f4 {[%clk 0:00:03.9]} 53... Ke6 {[%clk 0:00:05.5]} 54. Kh4 {[%clk
0:00:04]} 54... Kf5 {[%clk 0:00:03]} 55. Bc3 {[%clk 0:00:01.9]} 55... Kxf4
{[%clk 0:00:02.5]} 56. Bf6 {[%clk 0:00:02.1]} 56... Kf5 {[%clk 0:00:02.6]} 57.
Kg3 {[%clk 0:00:02.2]} 57... Rg6 {[%clk 0:00:02.8]} 58. Kh4 {[%clk 0:00:02.4]}
58... Rxf6 {[%clk 0:00:03.1]} 59. gxf6 {[%clk 0:00:03.3]} 59... Kxf6 {[%clk
0:00:03.8]} 60. Kxh5 {[%clk 0:00:03.8]} 60... c4 {[%clk 0:00:04.4]} 61. Kg4
{[%clk 0:00:04.7]} 61... c3 {[%clk 0:00:05.1]} 62. Kf3 {[%clk 0:00:05.6]} 62...
c2 {[%clk 0:00:06]} 63. Ke2 {[%clk 0:00:06.4]} 63... c1=Q {[%clk 0:00:06.6]} 64.
Kd3 {[%clk 0:00:07]} 64... Ke5 {[%clk 0:00:06.2]} 65. Ke2 {[%clk 0:00:06.3]}
65... Ke4 {[%clk 0:00:06.4]} 0-1

[Event "Late-Titled-Tuesday-Blitz-June-18-2024"]
[Site "Chess.com"]
[Date "2024.06.18"]
[Round "2"]
[White "AleksandraMilovic"]
[Black "SharathRk6"]
[Result "0-1"]
[WhiteElo "2030"]
[BlackElo "2440"]
[TimeControl "180+1"]
[EndTime "14:20:00 PDT"]
[Termination "SharathRk6 won by resignation"]

1. e4 {[%clk 0:03:00.9]} 1... e5 {[%clk 0:02:54.5]} 2. Nf3 {[%clk 0:03:00.7]}
2... Nc6 {[%clk 0:02:53.3]} 3. Bb5 {[%clk 0:02:58]} 3... a6 {[%clk 0:02:52.9]}
4. Ba4 {[%clk 0:02:57.9]} 4... Nf6 {[%clk 0:02:53]} 5. O-O {[%clk 0:02:55.8]}
5... b5 {[%clk 0:02:53.4]} 6. Bb3 {[%clk 0:02:55]} 6... Bc5 {[%clk 0:02:53.4]}
7. d3 {[%clk 0:02:49.5]} 7... d6 {[%clk 0:02:52.5]} 8. c3 {[%clk 0:02:47.3]}
8... O-O {[%clk 0:02:51.4]} 9. Nbd2 {[%clk 0:02:40.5]} 9... h6 {[%clk
0:02:46.2]} 10. Re1 {[%clk 0:02:30.4]} 10... Be6 {[%clk 0:02:38.5]} 11. Nf1
{[%clk 0:02:14.8]} 11... d5 {[%clk 0:02:33.4]} 12. exd5 {[%clk 0:02:08.7]} 12...
Nxd5 {[%clk 0:02:18.4]} 13. Nxe5 {[%clk 0:02:04.6]} 13... Nxe5 {[%clk
0:02:15.8]} 14. Rxe5 {[%clk 0:02:05.5]} 14... Bxf2+ {[%clk 0:02:15.2]} 15. Kh1
{[%clk 0:02:01.6]} 15... c6 {[%clk 0:02:02.8]} 16. Qf3 {[%clk 0:01:52.2]} 16...
Bb6 {[%clk 0:01:58.1]} 17. Ne3 {[%clk 0:01:35.6]} 17... Nxe3 {[%clk 0:01:32.1]}
18. Bxe3 {[%clk 0:01:35.1]} 18... Bc7 {[%clk 0:01:31.1]} 19. Rh5 {[%clk
0:01:18.1]} 19... Bxb3 {[%clk 0:01:16.4]} 20. axb3 {[%clk 0:01:16.1]} 20... Qxd3
{[%clk 0:01:17]} 21. Qxc6 {[%clk 0:01:02.2]} 21... Qxe3 {[%clk 0:01:15.2]} 22.
Qxc7 {[%clk 0:01:02.3]} 22... Qe2 {[%clk 0:01:15.2]} 23. Rf5 {[%clk 0:00:50.6]}
23... Qxb2 {[%clk 0:01:07.8]} 24. Raf1 {[%clk 0:00:33.9]} 24... Qxb3 {[%clk
0:01:04.8]} 25. h3 {[%clk 0:00:32.5]} 25... Rac8 {[%clk 0:00:56.4]} 26. Qb7
{[%clk 0:00:30.6]} 26... Rxc3 {[%clk 0:00:53.7]} 27. Qxa6 {[%clk 0:00:29.4]}
27... b4 {[%clk 0:00:52.3]} 28. R1f4 {[%clk 0:00:20.1]} 28... Qd1+ {[%clk
0:00:33.9]} 29. Kh2 {[%clk 0:00:20.1]} 29... b3 {[%clk 0:00:34]} 30. Rg4 {[%clk
0:00:18.6]} 30... Kh7 {[%clk 0:00:26.1]} 31. Rxg7+ {[%clk 0:00:16.7]} 31... Kxg7
{[%clk 0:00:24.9]} 32. Qf6+ {[%clk 0:00:17.4]} 32... Kh7 {[%clk 0:00:25.5]} 33.
Qxc3 {[%clk 0:00:16]} 33... Qd6+ {[%clk 0:00:23.5]} 34. Kg1 {[%clk 0:00:12.2]}
34... Qb6+ {[%clk 0:00:21.9]} 35. Kh2 {[%clk 0:00:12]} 35... b2 {[%clk
0:00:20.8]} 36. Rf6 {[%clk 0:00:10]} 36... b1=Q {[%clk 0:00:19.4]} 37. Rxb6
{[%clk 0:00:05.7]} 37... Qxb6 {[%clk 0:00:20.3]} 38. Qd3+ {[%clk 0:00:06.2]}
38... Qg6 {[%clk 0:00:20]} 39. Qc3 {[%clk 0:00:06.4]} 39... Rg8 {[%clk
0:00:19.6]} 40. Qd2 {[%clk 0:00:06]} 40... h5 {[%clk 0:00:17.9]} 41. Kh1 {[%clk
0:00:05.4]} 41... h4 {[%clk 0:00:13.9]} 42. Qf2 {[%clk 0:00:04.7]} 42... Qxg2+
{[%clk 0:00:09.7]} 43. Qxg2 {[%clk 0:00:04.7]} 43... Rxg2 {[%clk 0:00:10.6]} 44.
Kxg2 {[%clk 0:00:05.4]} 44... Kg6 {[%clk 0:00:11.3]} 45. Kf2 {[%clk 0:00:04.6]}
45... Kf5 {[%clk 0:00:12.2]} 46. Kf3 {[%clk 0:00:04.9]} 46... Kg5 {[%clk
0:00:11.9]} 47. Ke4 {[%clk 0:00:04.9]} 47... Kg6 {[%clk 0:00:08.8]} 48. Kf4
{[%clk 0:00:05.2]} 48... f5 {[%clk 0:00:06.9]} 49. Ke3 {[%clk 0:00:02.8]} 49...
Kf7 {[%clk 0:00:05]} 50. Kf4 {[%clk 0:00:02.4]} 50... Kf6 {[%clk 0:00:05.1]} 51.
Kf3 {[%clk 0:00:02.8]} 51... Ke5 {[%clk 0:00:05.2]} 52. Ke3 {[%clk 0:00:03.4]}
52... f4+ {[%clk 0:00:05.8]} 53. Kf3 {[%clk 0:00:04]} 53... Kf5 {[%clk
0:00:06.5]} 54. Kf2 {[%clk 0:00:04.5]} 54... Ke4 {[%clk 0:00:07.2]} 55. Ke2
{[%clk 0:00:04.9]} 55... f3+ {[%clk 0:00:07.9]} 56. Kf2 {[%clk 0:00:05.5]} 56...
Kf4 {[%clk 0:00:08.6]} 57. Kf1 {[%clk 0:00:05.7]} 57... Kg3 {[%clk 0:00:08.5]}
58. Kg1 {[%clk 0:00:05.7]} 58... Kxh3 {[%clk 0:00:09.1]} 59. Kf2 {[%clk
0:00:06.4]} 59... Kg4 {[%clk 0:00:09.2]} 60. Kg1 {[%clk 0:00:06.9]} 60... Kg3
{[%clk 0:00:09.6]} 61. Kf1 {[%clk 0:00:07.4]} 61... h3 {[%clk 0:00:08.4]} 62.
Kg1 {[%clk 0:00:04.2]} 62... h2+ {[%clk 0:00:08.8]} 63. Kh1 {[%clk 0:00:04.1]}
63... Kf4 {[%clk 0:00:08.9]} 64. Kxh2 {[%clk 0:00:04.5]} 64... Ke3 {[%clk
0:00:09.6]} 65. Kg1 {[%clk 0:00:05]} 65... Ke2 {[%clk 0:00:10.3]} 66. Kh2 {[%clk
0:00:04.5]} 66... f2 {[%clk 0:00:11.2]} 67. Kg3 {[%clk 0:00:05.4]} 67... f1=Q
{[%clk 0:00:11.6]} 0-1